bitfinex/quotes_BTCUSD_20250211
["timestamp","ask_amount","ask_price","bid_price","bid_amount"]
[1739289951191,0.23905926,97019.0,97018.0,0.01322386]
[1739289951415,0.23905926,97019.0,97018.0,0.00022386]
[1739289951881,0.23905926,97019.0,97018.0,0.00422386]
[1739289952816,0.23905926,97019.0,97018.0,0.01222386]
[1739289953102,0.23905926,97019.0,97018.0,0.00822386]
[1739289953350,0.34156291,97019.0,97018.0,0.00522386]
[1739289953627,0.48946291,97019.0,97018.0,0.00100001]
[1739289953860,0.380332,97004.0,97003.0,2.1e-07]
[1739289954113,0.304643,96997.0,96992.0,0.00022386]
[1739289954346,0.304643,96997.0,96996.0,0.00066829]
[1739289954347,1.08524665,96997.0,96996.0,0.00066829]
[1739289954577,0.40714665,96997.0,96996.0,0.00066829]
[1739289954782,0.154643,96997.0,96996.0,0.00066829]
[1739289955163,0.05954437,97018.0,96996.0,0.00066829]
[1739289955373,0.154643,96997.0,96996.0,0.00066829]
[1739289956814,0.154643,96997.0,96996.0,0.00766829]
[1739289957028,0.154643,96997.0,96996.0,0.00466829]
[1739289957235,0.154643,96997.0,96996.0,0.00066829]
[1739289957478,0.154643,96997.0,96996.0,0.00566829]
[1739289957687,0.2329619,96997.0,96996.0,0.01666829]
[1739289958779,0.33546555,96997.0,96996.0,0.01666829]
[1739289960420,0.25814665,96997.0,96996.0,0.01666829]
[1739289960628,0.155643,96997.0,96996.0,0.01666829]
[1739289963543,0.12623046,96999.0,96996.0,0.01666829]
[1739289963793,0.25714665,96997.0,96996.0,0.01666829]
[1739289964291,0.40714665,96997.0,96996.0,0.01666829]
[1739289964545,0.45414665,96997.0,96996.0,0.00566829]
[1739289964791,0.5566503,96997.0,96996.0,0.01366829]
[1739289965287,0.5566503,96997.0,96996.0,0.00866829]
[1739289965944,0.154676,96977.0,96970.0,0.04659214]
[1739289966189,0.154676,96977.0,96970.0,0.04672035]
[1739289966690,0.206207,96990.0,96970.0,0.02852079]
[1739289966893,0.154673,96979.0,96970.0,0.02852079]
[1739289967097,0.001,96977.0,96970.0,0.04352079]
[1739289967309,0.001,96977.0,96970.0,0.05052079]
[1739289967464,0.154674,96978.0,96970.0,0.03552079]
[1739289967942,0.154674,96978.0,96970.0,0.04452948]
[1739289968143,0.154671,96980.0,96970.0,0.03752948]
[1739289968414,0.154672,96979.0,96970.0,0.03653852]
[1739289968619,0.154672,96979.0,96970.0,0.04153852]
[1739289969065,0.34980124,96990.0,96970.0,0.04153852]
[1739289969066,0.154654,96991.0,96977.0,0.0466]
[1739289969282,0.0761,97005.0,96980.0,0.14259424]
[1739289969283,0.206177,97004.0,96980.0,0.14259424]
[1739289969511,0.154651,96993.0,96978.0,0.154673]
[1739289969778,0.10250365,97004.0,96977.0,0.0466]
[1739289970035,0.154654,96991.0,96977.0,0.0466]
[1739289970458,0.001,96979.0,96977.0,0.201274]
[1739289970459,0.001,96979.0,96977.0,0.0466]
[1739289970690,0.154653,96992.0,96977.0,0.0466]
[1739289970900,0.154653,96992.0,96977.0,0.0506]
[1739289971199,0.154656,96990.0,96978.0,0.006]
[1739289971402,0.0360853,96991.0,96979.0,0.0815]
[1739289971617,0.154653,96992.0,96979.0,0.236172]
[1739289971966,0.02344743,96993.0,96979.0,0.0815]
[1739289972165,0.206172,97007.0,96979.0,0.0815]
[1739289972373,0.154648,96994.0,96980.0,0.154671]
[1739289972602,0.15465,96994.0,96980.0,0.15467]
[1739289972806,0.206185,97000.0,96979.0,0.0815]
[1739289973035,0.15465,96993.0,96979.0,0.0815]
[1739289973284,0.15465,96993.0,96979.0,0.236172]
[1739289973963,0.154652,96992.0,96979.0,0.0855]
[1739289974182,0.154652,96992.0,96979.0,0.251171]
[1739289974389,0.0154652,96991.0,96982.0,0.154667]
[1739289974655,0.0154652,96991.0,96979.0,0.304728]
[1739289974894,0.001,96993.0,96984.0,0.154663]
[1739289975178,0.001,96993.0,96984.0,0.10250365]
[1739289975586,0.001,96993.0,96987.0,0.154659]
[1739289975728,0.154643,96998.0,96985.0,0.154661]
[1739289975932,0.001,96992.0,96985.0,0.154661]
[1739289976162,0.001,96992.0,96986.0,0.154661]
[1739289976476,0.15464,96999.0,96986.0,0.154661]
[1739289977241,0.001,96993.0,96987.0,0.012]
[1739289977447,0.001,96993.0,96987.0,0.166658]
[1739289977644,0.001,96993.0,96987.0,0.012]
[1739289978268,0.001,96993.0,96987.0,0.166659]
[1739289978695,0.0001066,97000.0,96986.0,0.004]
[1739289978929,0.0001066,97000.0,96990.0,0.14259424]
[1739289979132,0.001,96999.0,96991.0,0.255404]
[1739289979268,0.001,96999.0,96991.0,0.255403]
[1739289979474,0.0001066,97000.0,96995.0,0.154646]
[1739289979878,0.0011066,97000.0,96995.0,0.154646]
[1739289980072,0.0011066,97000.0,96992.0,0.206202]
[1739289980308,0.0011066,97000.0,96993.0,0.154649]
[1739289980479,0.0011066,97000.0,96991.0,0.0492]
[1739289980480,0.0001066,97000.0,96991.0,0.0532]
[1739289980675,0.03959739,97000.0,96995.0,0.007]
[1739289981080,0.154645,96996.0,96995.0,0.011]
[1739289981606,0.154645,96996.0,96995.0,0.007]
[1739289982004,0.0001066,97000.0,96981.0,0.0492]
[1739289982202,0.154658,96989.0,96981.0,0.0492]
[1739289982572,0.05034582,96988.0,96981.0,0.0492]
[1739289983200,0.05034582,96988.0,96981.0,0.0552]
[1739289983619,0.20500482,96988.0,96981.0,0.0492]
[1739289983822,0.15466,96987.0,96981.0,0.0492]
[1739289984027,0.15466,96987.0,96981.0,0.0562]
[1739289984238,0.154674,96978.0,96977.0,0.00022386]
[1739289984444,0.0758,96989.0,96977.0,0.00022386]
[1739289984646,0.154667,96982.0,96981.0,0.019]
[1739289985621,0.001,96988.0,96981.0,0.019]
[1739289986015,0.02060919,96989.0,96981.0,0.007]
[1739289986236,0.15465,96993.0,96982.0,0.0492]
[1739289986440,0.16525943,96994.0,96982.0,0.0492]
[1739289986658,0.16525943,96994.0,96987.0,0.154659]
[1739289986659,0.05141513,96993.0,96987.0,0.154659]
[1739289986852,0.001,96987.0,96986.0,0.154661]
[1739289987202,0.01061143,96994.0,96984.0,0.0784]
[1739289987508,0.01161143,96994.0,96987.0,0.154659]
[1739289987934,0.01161143,96994.0,96993.0,0.15465]
[1739289988137,0.01161143,96994.0,96987.0,0.007]
[1739289988629,0.01161143,96994.0,96988.0,0.206211]
[1739289988830,0.01061143,96994.0,96988.0,0.206211]
[1739289989056,0.01061143,96994.0,96991.0,0.154652]
[1739289989300,0.01161143,96994.0,96991.0,0.154652]
[1739289989737,0.01161143,96994.0,96984.0,0.295617]
[1739289989944,0.01061143,96994.0,96985.0,0.10250365]
[1739289990364,0.01161143,96994.0,96988.0,0.011]
[1739289990540,0.01161143,96994.0,96990.0,0.154655]
[1739289990774,0.01061143,96994.0,96990.0,0.154655]
[1739289990975,0.01061143,96994.0,96991.0,0.154652]
[1739289991182,0.01061143,96994.0,96990.0,0.154655]
[1739289991894,0.01061143,96994.0,96987.0,0.154659]
[1739289992021,0.01161143,96994.0,96985.0,0.10850365]
[1739289992232,0.01161143,96994.0,96985.0,0.006]
[1739289992665,0.01061143,96994.0,96985.0,0.006]
[1739289992862,0.01161143,96994.0,96990.0,0.011]
[1739289993278,0.01161143,96994.0,96990.0,0.017]
[1739289993436,0.01061143,96994.0,96990.0,0.006]
[1739289993628,0.01061143,96994.0,96986.0,0.15466]
[1739289993834,0.01161143,96994.0,96986.0,0.15466]
[1739289994040,0.01161143,96994.0,96985.0,0.165662]
[1739289994463,0.01161143,96994.0,96990.0,0.006]
[1739289995105,0.01061143,96994.0,96990.0,0.006]
[1739289995315,0.01161143,96994.0,96990.0,0.017]
[1739289996372,0.01161143,96994.0,96990.0,0.006]
[1739289996582,0.01061143,96994.0,96990.0,0.006]
[1739289996889,0.01161143,96994.0,96990.0,0.011]
[1739289997090,0.001,96994.0,96993.0,0.15465]
[1739289997730,0.001,96994.0,96991.0,0.206204]
[1739289997940,0.001,96994.0,96990.0,0.017]
[1739289998154,0.01557456,96993.0,96990.0,0.017]
[1739289998282,0.001,96994.0,96990.0,0.011]
[1739289998492,0.001,96994.0,96993.0,0.006]
[1739289998698,0.0001066,97000.0,96993.0,0.006]
[1739289999598,0.0001066,97000.0,96994.0,0.154648]
[1739289999762,0.0001067,96994.0,96993.0,0.213199]
[1739290000187,0.0001067,96994.0,96993.0,0.206199]
[1739290000597,0.0001067,96994.0,96993.0,0.006]
[1739290000810,0.0001067,96994.0,96993.0,0.002]
[1739290001166,0.0001067,96994.0,96993.0,0.009]
[1739290002342,0.0001067,96994.0,96993.0,0.007]
[1739290002765,0.0001067,96994.0,96993.0,0.018]
[1739290003941,0.0001067,96994.0,96993.0,0.011]
[1739290004133,0.0001067,96994.0,96991.0,0.154652]
[1739290004337,0.0001067,96994.0,96993.0,0.019]
[1739290005509,0.0001067,96994.0,96993.0,0.007]
[1739290006127,0.03621093,96994.0,96993.0,0.007]
[1739290006431,0.0001067,96994.0,96993.0,0.007]
[1739290006627,0.0001067,96994.0,96990.0,0.01]
[1739290006886,0.0001067,96994.0,96991.0,0.007]
[1739290007323,0.0001067,96994.0,96990.0,0.01]
[1739290007529,0.0001067,96994.0,96993.0,0.022]
[1739290007674,0.0001067,96994.0,96993.0,0.015]
[1739290008282,0.01559183,96994.0,96993.0,0.015]
[1739290008642,0.0001067,96994.0,96993.0,0.015]
[1739290009262,0.0001067,96994.0,96992.0,0.15465]
[1739290009521,0.0001067,96994.0,96992.0,0.154651]
[1739290009942,0.0001067,96994.0,96993.0,0.16165]
[1739290010147,0.0001067,96994.0,96991.0,0.154652]
[1739290010350,0.0001067,96994.0,96991.0,0.154653]
[1739290010548,0.0001067,96994.0,96992.0,0.022]
[1739290010757,0.0001067,96994.0,96992.0,0.015]
[1739290011168,0.0001067,96994.0,96993.0,0.007]
[1739290011371,0.0001067,96994.0,96991.0,0.015]
[1739290012838,0.0001067,96994.0,96992.0,0.007]
[1739290013043,0.0001067,96994.0,96987.0,0.206212]
[1739290013248,0.0001067,96994.0,96989.0,0.154656]
[1739290013417,0.0001067,96994.0,96992.0,0.015]
[1739290013778,0.0001067,96994.0,96991.0,0.007]
[1739290013978,0.0001067,96994.0,96989.0,0.154656]
[1739290014839,0.0001067,96994.0,96989.0,0.161656]
[1739290015032,0.01428075,96993.0,96989.0,0.161656]
[1739290015208,0.0001067,96994.0,96991.0,0.015]
[1739290016414,0.0001067,96994.0,96989.0,0.154656]
[1739290016635,0.0001067,96994.0,96991.0,0.007]
[1739290017419,0.0001067,96994.0,96989.0,0.169656]
[1739290017610,0.0001067,96994.0,96989.0,0.007]
[1739290017815,0.00785133,96993.0,96991.0,0.015]
[1739290018137,0.00785133,96993.0,96991.0,0.022]
[1739290018333,0.00785133,96993.0,96991.0,0.007]
[1739290019157,0.01928889,96992.0,96991.0,0.007]
[1739290019365,0.01928889,96992.0,96978.0,0.3213]
[1739290019366,0.154665,96984.0,96978.0,0.3213]
[1739290019617,0.34880024,96990.0,96989.0,0.015]
[1739290019830,0.206206,96990.0,96989.0,0.022]
[1739290020036,0.154663,96985.0,96978.0,0.3213]
[1739290020370,0.02891212,96993.0,96978.0,0.3213]
[1739290020581,0.154661,96987.0,96978.0,0.3213]
[1739290020787,0.206209,96989.0,96978.0,0.3213]
[1739290021029,0.02106079,96993.0,96989.0,0.007]
[1739290021168,0.02106079,96993.0,96983.0,0.154665]
[1739290021367,0.0106992,96994.0,96979.0,0.20623]
[1739290021630,0.0106992,96994.0,96983.0,0.154664]
[1739290022323,0.0316688,96994.0,96983.0,0.154664]
[1739290022697,0.1863168,96994.0,96981.0,0.154668]
[1739290022889,0.1863168,96994.0,96982.0,0.154667]
[1739290023210,0.26828666,96994.0,96983.0,0.154666]
[1739290023424,0.1863168,96994.0,96983.0,0.154666]
[1739290023803,0.1863168,96994.0,96983.0,0.161666]
[1739290024199,0.1653472,96994.0,96983.0,0.161666]
[1739290024417,0.1653472,96994.0,96983.0,0.167666]
[1739290024737,0.154654,96991.0,96983.0,0.013]
[1739290025610,0.154654,96991.0,96983.0,0.006]
[1739290025811,0.154654,96991.0,96983.0,0.013]
[1739290026225,0.154654,96991.0,96983.0,0.007]
[1739290026450,0.154654,96991.0,96981.0,0.206224]
[1739290026652,0.154652,96992.0,96984.0,0.154663]
[1739290026852,0.154651,96992.0,96983.0,0.174666]
[1739290027305,0.0106992,96994.0,96991.0,0.154653]
[1739290027501,0.0001067,96994.0,96993.0,0.15465]
[1739290028585,0.0001067,96994.0,96991.0,0.154652]
[1739290029245,0.0001067,96994.0,96984.0,0.1244]
[1739290029475,0.0001067,96994.0,96990.0,0.154653]
[1739290029699,0.0001067,96994.0,96991.0,0.007]
[1739290029915,0.01428075,96993.0,96991.0,0.007]
[1739290030248,0.01428075,96993.0,96991.0,0.017]
[1739290030425,0.0001067,96994.0,96991.0,0.017]
[1739290030838,0.0001067,96994.0,96985.0,0.154662]
[1739290031054,0.0001067,96994.0,96991.0,0.011]
[1739290032705,0.01927823,96993.0,96991.0,0.011]
[1739290032913,0.01927823,96993.0,96985.0,0.007]
[1739290033130,0.07367768,96993.0,96985.0,0.007]
[1739290033349,0.07367768,96993.0,96991.0,0.01]
[1739290033581,0.07367768,96993.0,96991.0,0.017]
[1739290033770,0.01927823,96993.0,96991.0,0.007]
[1739290033974,0.01927823,96993.0,96982.0,0.206222]
[1739290034176,0.01927823,96992.0,96985.0,0.173663]
[1739290034372,0.01927823,96992.0,96986.0,0.15466]
[1739290034751,0.01927823,96992.0,96979.0,0.206228]
[1739290035004,0.17392923,96992.0,96991.0,0.012]
[1739290035189,0.2140596,96992.0,96991.0,0.012]
[1739290035361,0.17392923,96992.0,96991.0,0.012]
[1739290035567,0.24972923,96992.0,96991.0,0.012]
[1739290035790,0.24972923,96992.0,96991.0,0.019]
[1739290036208,0.24972923,96992.0,96991.0,0.012]
[1739290036410,0.45593323,96992.0,96991.0,0.007]
[1739290038120,0.5448833,96992.0,96991.0,0.02]
[1739290040274,0.5448833,96992.0,96991.0,0.007]
[1739290040475,0.5448833,96992.0,96991.0,0.014]
[1739290040678,0.5448833,96992.0,96991.0,0.007]
[1739290041044,0.154661,96986.0,96985.0,0.00022386]
[1739290042759,0.154661,96986.0,96985.0,0.00722386]
[1739290042912,0.17393923,96986.0,96985.0,0.00722386]
[1739290043783,0.17393923,96986.0,96985.0,0.01922386]
[1739290044341,0.01927823,96986.0,96985.0,0.01922386]
[1739290044591,0.01927823,96986.0,96985.0,0.17388686]
[1739290045598,0.01927823,96986.0,96985.0,0.00022386]
[1739290046024,0.01927823,96986.0,96985.0,0.02222386]
[1739290046875,0.17393923,96986.0,96985.0,0.02222386]
[1739290047074,0.19133315,96986.0,96985.0,0.02222386]
[1739290047257,0.26713315,96986.0,96985.0,0.02222386]
[1739290048000,0.24973923,96986.0,96985.0,0.02222386]
[1739290048409,0.24973923,96986.0,96985.0,0.01522386]
[1739290048654,0.24973923,96986.0,96985.0,0.02222386]
[1739290048932,0.24973923,96986.0,96985.0,0.00722386]
[1739290049084,0.24973923,96986.0,96985.0,0.01622386]
[1739290049295,0.24973923,96986.0,96985.0,0.00922386]
[1739290049493,0.17393923,96986.0,96985.0,0.00022386]
[1739290049695,0.17393923,96986.0,96985.0,0.00722386]
[1739290049893,0.17393923,96986.0,96985.0,0.01622386]
[1739290060167,0.01927823,96986.0,96985.0,0.01622386]
[1739290060599,0.01927823,96986.0,96985.0,0.17088686]
[1739290061208,0.0001066,96992.0,96986.0,0.03369277]
[1739290061419,0.154653,96991.0,96986.0,0.03369277]
[1739290061602,0.0001066,96992.0,96986.0,0.03369277]
[1739290061805,0.1547586,96992.0,96986.0,0.03369277]
[1739290062121,0.0001066,96992.0,96986.0,0.18835277]
[1739290062321,0.154653,96991.0,96986.0,0.03869277]
[1739290063277,0.154655,96990.0,96986.0,0.04369277]
[1739290063481,0.206204,96991.0,96986.0,0.04369277]
[1739290063678,0.154656,96989.0,96986.0,0.04369277]
[1739290063984,0.154655,96990.0,96986.0,0.03869277]
[1739290064183,0.154655,96990.0,96986.0,0.03369277]
[1739290064456,0.154657,96989.0,96986.0,0.04469277]
[1739290064690,0.0001066,96992.0,96986.0,0.03369277]
[1739290064882,0.154659,96987.0,96986.0,0.03969277]
[1739290065174,0.154659,96987.0,96986.0,0.04669277]
[1739290065551,0.154659,96987.0,96986.0,0.03969277]
[1739290065981,0.154659,96987.0,96986.0,0.04469277]
[1739290066394,0.154659,96987.0,96986.0,0.03869277]
[1739290066569,0.2134952,96987.0,96986.0,0.03869277]
[1739290066726,0.2134952,96987.0,96986.0,0.04469277]
[1739290066923,0.2134952,96987.0,96986.0,0.03869277]
[1739290067152,0.2134952,96987.0,96986.0,0.04569277]
[1739290067357,0.154659,96987.0,96986.0,0.04569277]
[1739290067946,0.154659,96987.0,96986.0,0.04069277]
[1739290068824,0.154659,96987.0,96986.0,0.04969277]
[1739290070473,0.0001066,96992.0,96986.0,0.04969277]
[1739290070889,0.154653,96991.0,96986.0,0.04969277]
[1739290071097,0.154655,96990.0,96986.0,0.04969277]
[1739290071301,0.154655,96990.0,96986.0,0.04069277]
[1739290071498,0.154655,96990.0,96986.0,0.03369277]
[1739290071718,0.154655,96990.0,96986.0,0.03869277]
[1739290071885,0.154655,96990.0,96986.0,0.04369277]
[1739290072307,0.12498953,96993.0,96986.0,0.03869277]
[1739290072617,0.154655,96991.0,96986.0,0.03869277]
[1739290072903,0.154655,96990.0,96986.0,0.03869277]
[1739290073074,0.154655,96990.0,96986.0,0.03969277]
[1739290073275,0.154653,96992.0,96986.0,0.03969277]
[1739290073575,0.154653,96991.0,96986.0,0.03969277]
[1739290073882,0.154653,96991.0,96986.0,0.04569277]
[1739290074042,0.154653,96991.0,96986.0,0.03969277]
[1739290074441,0.154653,96991.0,96986.0,0.03869277]
[1739290074639,0.154653,96991.0,96986.0,0.03369277]
[1739290074848,0.154653,96991.0,96986.0,0.03969277]
[1739290075055,0.154653,96991.0,96986.0,0.04469277]
[1739290075253,0.154655,96990.0,96986.0,0.04469277]
[1739290075459,0.154655,96990.0,96986.0,0.03869277]
[1739290075811,0.154655,96990.0,96986.0,0.04469277]
[1739290076204,0.22953756,96990.0,96986.0,0.03369277]
[1739290076716,0.22953756,96990.0,96986.0,0.04069277]
[1739290077072,0.02118243,96994.0,96993.0,0.15465]
[1739290077073,0.0001067,96994.0,96993.0,0.15465]
[1739290077414,0.0001067,96994.0,96991.0,0.360854]
[1739290077557,0.0001067,96994.0,96992.0,0.15465]
[1739290077996,0.0001067,96994.0,96991.0,0.154652]
[1739290078189,0.0001067,96994.0,96992.0,0.154651]
[1739290078456,0.0001067,96994.0,96990.0,0.154653]
[1739290078996,0.0001067,96994.0,96993.0,0.16065]
[1739290079201,0.0001067,96994.0,96993.0,0.006]
[1739290079607,0.0001067,96994.0,96986.0,0.03969277]
[1739290079927,0.0001067,96994.0,96990.0,0.165654]
[1739290080128,0.0001067,96994.0,96991.0,0.154652]
[1739290080525,0.0001067,96994.0,96991.0,0.005]
[1739290080713,0.0001067,96994.0,96990.0,0.011]
[1739290081089,0.0001067,96994.0,96990.0,0.018]
[1739290081379,0.0001067,96994.0,96990.0,0.154654]
[1739290081720,0.0001067,96994.0,96993.0,0.011]
[1739290082337,0.0001067,96994.0,96990.0,0.154654]
[1739290082517,0.0001067,96994.0,96989.0,0.154655]
[1739290082720,0.0001067,96994.0,96991.0,0.007]
[1739290082966,0.0001067,96994.0,96990.0,0.165654]
[1739290083364,0.0001067,96994.0,96993.0,0.007]
[1739290083543,0.0001067,96994.0,96990.0,0.011]
[1739290083756,0.0001067,96994.0,96991.0,0.154653]
[1739290083960,0.0001067,96994.0,96991.0,0.007]
[1739290084191,0.0001067,96994.0,96990.0,0.011]
[1739290084389,0.01438745,96994.0,96990.0,0.011]
[1739290084599,0.0001067,96994.0,96993.0,0.007]
[1739290085336,0.1547547,96994.0,96993.0,0.007]
[1739290085810,0.154653,96992.0,96986.0,0.03391663]
[1739290086039,0.154655,96991.0,96986.0,0.03391663]
[1739290086893,0.01857195,96994.0,96986.0,0.03391663]
[1739290087057,0.15465,96993.0,96986.0,0.18857663]
[1739290087256,0.1547557,96994.0,96986.0,0.04091663]
[1739290087495,0.15465,96993.0,96986.0,0.04091663]
[1739290087855,0.15465,96993.0,96986.0,0.05391663]
[1739290089035,0.15465,96993.0,96986.0,0.03391663]
[1739290089165,0.154652,96992.0,96986.0,0.04591663]
[1739290089380,0.154652,96992.0,96986.0,0.05291663]
[1739290090184,0.0001067,96994.0,96986.0,0.04591663]
[1739290090407,0.0001067,96994.0,96986.0,0.05291663]
[1739290090745,0.2062,96993.0,96986.0,0.04091663]
[1739290091017,0.154653,96991.0,96986.0,0.05391663]
[1739290091218,0.22545758,96993.0,96986.0,0.05391663]
[1739290091419,0.22545758,96993.0,96986.0,0.04091663]
[1739290091624,0.01925758,96993.0,96986.0,0.04091663]
[1739290091847,0.154651,96992.0,96986.0,0.05191663]
[1739290092480,0.154659,96987.0,96986.0,0.03391663]
[1739290092971,0.154659,96987.0,96986.0,0.04091663]
[1739290093180,0.154659,96987.0,96986.0,0.03391663]
[1739290093383,0.17391658,96987.0,96986.0,0.03391663]
[1739290093738,0.17391658,96987.0,96986.0,0.05291663]
[1739290094059,0.01925758,96987.0,96986.0,0.20057763]
[1739290094271,0.01925758,96987.0,96986.0,0.18857763]
[1739290094464,0.01925758,96987.0,96986.0,0.04291663]
[1739290095708,0.17391658,96987.0,96986.0,0.04291663]
[1739290095888,0.17391658,96987.0,96986.0,0.04991663]
[1739290096780,0.01925758,96987.0,96986.0,0.04991663]
[1739290097142,0.01925758,96987.0,96986.0,0.20457763]
[1739290097560,0.01925758,96987.0,96986.0,0.04991663]
[1739290098184,0.01925758,96987.0,96986.0,0.20457763]
[1739290099004,0.21193821,96987.0,96986.0,0.04991663]
[1739290100610,0.22889989,96987.0,96986.0,0.04991663]
[1739290103063,0.19087826,96987.0,96986.0,0.04991663]
[1739290103712,0.01925758,96987.0,96986.0,0.04991663]
[1739290103913,0.17391658,96987.0,96986.0,0.04991663]
[1739290109329,0.20472664,96987.0,96986.0,0.04991663]
[1739290110913,0.20472664,96987.0,96986.0,0.04091663]
[1739290111770,0.2923235,96987.0,96986.0,0.04091663]
[1739290112269,0.20472664,96987.0,96986.0,0.04491663]
[1739290112634,0.20472664,96987.0,96986.0,0.03391663]
[1739290112839,0.20472664,96987.0,96986.0,0.03991663]
[1739290113428,0.20472664,96987.0,96986.0,0.04491663]
[1739290113869,0.20472664,96987.0,96986.0,0.03991663]
[1739290114083,0.20472664,96987.0,96986.0,0.04591663]
[1739290115715,0.20472664,96987.0,96986.0,0.03991663]
[1739290115883,0.20472664,96987.0,96986.0,0.03391663]
[1739290116091,0.20472664,96987.0,96986.0,0.04591663]
[1739290116731,0.2923235,96987.0,96986.0,0.04591663]
[1739290116934,0.20472664,96987.0,96986.0,0.04591663]
[1739290119532,0.05006764,96987.0,96986.0,0.09401663]
[1739290119762,0.05006764,96987.0,96986.0,0.33167763]
[1739290120448,0.05006764,96987.0,96986.0,0.32567763]
[1739290120690,0.01925758,96987.0,96986.0,0.42818128]
[1739290120945,0.01925758,96987.0,96986.0,0.43518128]
[1739290121550,0.01925758,96987.0,96986.0,0.33267763]
[1739290121709,0.01925758,96987.0,96986.0,0.32667763]
[1739290121909,0.01925758,96987.0,96986.0,0.33967763]
[1739290122767,0.0500793,96987.0,96986.0,0.51741523]
[1739290122945,0.0500793,96987.0,96986.0,0.44218128]
[1739290130251,0.0001066,96993.0,96992.0,0.154651]
[1739290130466,0.0001066,96993.0,96986.0,0.18501663]
[1739290130678,0.0001066,96993.0,96989.0,0.154655]
[1739290131055,0.0001066,96993.0,96987.0,0.206213]
[1739290131269,0.01439801,96993.0,96987.0,0.206213]
[1739290131478,0.01924661,96992.0,96988.0,0.154657]
[1739290131689,0.01924661,96992.0,96989.0,0.154656]
[1739290132124,0.01924661,96992.0,96986.0,0.03391663]
[1739290132329,0.01924661,96992.0,96988.0,0.154656]
[1739290132539,0.01924661,96992.0,96986.0,0.03391663]
[1739290132771,0.01924661,96992.0,96986.0,0.24012963]
[1739290132978,0.01924661,96992.0,96989.0,0.161656]
[1739290133177,0.01924661,96991.0,96989.0,0.154656]
[1739290134607,0.01924661,96990.0,96989.0,0.154656]
[1739290135464,0.01924661,96990.0,96989.0,0.174656]
[1739290135583,0.01924661,96990.0,96989.0,0.167656]
[1739290135987,0.01924661,96990.0,96989.0,0.007]
[1739290136190,0.01924661,96990.0,96989.0,0.154656]
[1739290136611,0.01924661,96990.0,96989.0,0.161656]
[1739290137031,0.01924661,96990.0,96989.0,0.16268701]
[1739290137230,0.01924661,96990.0,96989.0,0.40945965]
[1739290137935,0.01924661,96990.0,96989.0,0.39545965]
[1739290138137,0.01924661,96990.0,96989.0,0.41045965]
[1739290138524,0.0001066,96993.0,96992.0,0.154651]
[1739290139687,0.0001066,96993.0,96992.0,0.161651]
[1739290140700,0.0001066,96993.0,96992.0,0.174651]
[1739290141149,6e-07,96993.0,96992.0,0.40598554]
[1739290141352,0.0001066,97000.0,96992.0,0.40598554]
[1739290141353,9e-07,97000.0,96994.0,0.206198]
[1739290141564,9e-07,97000.0,96999.0,0.54494365]
[1739290141777,9e-07,97000.0,96999.0,1.41864365]
[1739290141969,0.0001067,97019.0,97018.0,0.28241]
[1739290142176,0.0001067,97019.0,97018.0,0.38491365]
[1739290143332,0.0005505,97019.0,97018.0,0.41791365]
[1739290143516,0.0005505,97019.0,97018.0,0.56791365]
[1739290143741,0.01924501,97033.0,97023.0,0.01]
[1739290143864,0.0001067,97034.0,97033.0,0.154586]
[1739290144068,0.00017071,97034.0,97033.0,0.33658965]
[1739290146269,0.00017071,97034.0,97033.0,0.35158965]
[1739290146744,0.00017071,97034.0,97033.0,0.37252116]
[1739290147175,0.00017071,97034.0,97033.0,0.37952116]
[1739290147591,0.00017071,97034.0,97033.0,0.35858965]
[1739290147800,0.00017071,97034.0,97033.0,0.35158965]
[1739290148440,0.00017071,97034.0,97033.0,0.34358965]
[1739290148865,0.00017071,97034.0,97033.0,0.35858965]
[1739290149729,0.00017071,97034.0,97033.0,0.34358965]
[1739290149927,0.00017071,97034.0,97033.0,0.33658965]
[1739290150152,0.00017071,97034.0,97033.0,0.35858965]
[1739290150354,0.00017071,97034.0,97033.0,0.4610933]
[1739290150555,0.00017071,97034.0,97033.0,0.35158965]
[1739290150764,0.00017071,97034.0,97033.0,0.35858965]
[1739290151207,0.00017071,97034.0,97033.0,0.35158965]
[1739290151548,0.00017071,97034.0,97033.0,0.33658965]
[1739290151755,0.00017071,97034.0,97033.0,0.35158965]
[1739290151959,0.00017071,97034.0,97033.0,0.35858965]
[1739290153199,0.00017071,97034.0,97033.0,0.33658965]
[1739290153582,0.00017071,97034.0,97033.0,0.35858965]
[1739290154827,0.00017071,97034.0,97033.0,0.67988965]
[1739290157796,0.00017071,97034.0,97033.0,0.65788965]
[1739290158124,0.00017071,97034.0,97033.0,0.67288965]
[1739290158331,0.00017071,97034.0,97033.0,0.67988965]
[1739290159062,0.00017071,97034.0,97033.0,0.3433]
[1739290159392,0.00017071,97034.0,97033.0,0.497886]
[1739290160178,0.01931144,97034.0,97033.0,0.490886]
[1739290160374,0.01931144,97034.0,97033.0,0.497886]
[1739290161031,0.03831717,97034.0,97033.0,0.482886]
[1739290161228,0.01931144,97034.0,97033.0,0.3433]
[1739290161428,0.01931144,97034.0,97033.0,0.022]
[1739290161985,0.01931144,97034.0,97033.0,0.007]
[1739290162166,0.17389544,97034.0,97033.0,0.022]
[1739290162366,0.22153317,97034.0,97033.0,0.022]
[1739290162525,0.17389544,97034.0,97033.0,0.007]
[1739290163046,0.17389544,97034.0,97033.0,0.015]
[1739290163251,0.17389544,97034.0,97033.0,0.022]
[1739290163433,0.20452061,97034.0,97033.0,0.015]
[1739290163883,0.20452061,97034.0,97033.0,0.022]
[1739290164085,0.04993661,97034.0,97026.0,0.154597]
[1739290164352,0.04993661,97034.0,97022.0,0.206138]
[1739290164623,0.14582126,97036.0,97033.0,0.015]
[1739290164823,0.0001066,97038.0,97033.0,0.007]
[1739290165063,0.154584,97034.0,97033.0,0.007]
[1739290166082,0.154584,97034.0,97033.0,0.015]
[1739290166292,0.154584,97034.0,97033.0,0.008]
[1739290166851,0.1546906,97034.0,97033.0,0.008]
[1739290167031,0.1546906,97034.0,97033.0,0.015]
[1739290168696,0.15448457,97034.0,97033.0,0.007]
[1739290168865,0.15448457,97034.0,97033.0,0.018]
[1739290169988,0.1546906,97034.0,97033.0,0.018]
[1739290170196,0.1546906,97034.0,97033.0,0.172586]